[Event "African Online-ch U20-Open 2021"]
[Site "Online"]
[Date "2021.02.01"]
[Round "4.16"]
[White "Masaiti, Gideon"]
[Black "Fourie, Brandon"]
[Result "0-1"]
[ECO "B33"]
[WhiteElo "1442"]
[BlackElo "1583"]
[Annotator "NA RC"]
[PlyCount "46"]
[EventDate "2021.02.01"]
[EventType "swiss"]
[EventCountry "NET"]
[SourceTitle "playchess.com"]
[Source "ChessBase"]
[SourceQuality "1"]
[TimeControl "1500+10"]

1. e4 {[%emt 0:00:00]} c5 {[%emt 0:00:04]} 2. Nf3 {[%emt 0:00:05]} Nc6 {[%emt 0:00:01]} 3. d4 {[%emt 0:00:04]} cxd4 {[%emt 0:00:01]} 4. Nxd4 {[%emt 0:00:03]} Nf6 {[%emt 0:00:01]} 5. Nc3 {[%emt 0:00:05]} e5 {[%emt 0:00:02]} 6. Nb3 {[%emt 0:00:03]} Bb4 {[%emt 0:00:07]} 7. f3 {[%emt 0:00:26]} d5 {[%emt 0:04:29]} 8. Bb5 {[%emt 0:01:46]} O-O {[%emt 0:04:05]} 9. Bxc6 {[%emt 0:00:44]} bxc6 {[%emt 0:00:28]} 10. Bg5 {[%emt 0:04:01]} h6 {[%emt 0:03:38]} 11. Bxf6 {[%emt 0:00:53]} Qxf6 {[%emt 0:00:17]} 12. exd5 {[%emt 0:00:25]} Ba6 {[%emt 0:04:11]} 13. a3 {[%emt 0:01:18]} Bxc3+ {[%emt 0:01:32]} 14. bxc3 {[%emt 0:00:06]} Rad8 {[%emt 0:00:34]} 15. Kf2 {[%emt 0:06:21]} Rxd5 {[%emt 0:01:59]} 16. Qe1 {[%emt 0:02:57]} e4 {[%emt 0:01:57]} 17. Qxe4 {[%emt 0:01:06]} Re5 {[%emt 0:00:41]} 18. Qd4 {[%emt 0:00:34]} Rd8 {[%emt 0:00:04]} 19. Qg4 {[%emt 0:03:27]} h5 {[%emt 0:00:44]} 20. Qb4 {[%emt 0:01:44]} Re2+ {[%emt 0:00:40]} 21. Kg1 {[%emt 0:01:14]} Qg5 {[%emt 0:00:39]} 22. g3 {[%emt 0:01:05]} Qe3+ {[%emt 0:00:07]} 23. Kf1 {[%emt 0:00:10]} Qf2# {[%emt 0:00:07]} 0-1

[Event "African Online-ch U20-Open 2021"]
[Site "Online"]
[Date "2021.02.01"]
[Round "4.18"]
[White "Sparg, Nathan"]
[Black "Dutt Dakshesh"]
[Result "1-0"]
[ECO "D32"]
[WhiteElo "1413"]
[BlackElo "1549"]
[Annotator "NA RC"]
[PlyCount "123"]
[EventDate "2021.02.01"]
[EventType "swiss"]
[EventCountry "NET"]
[SourceTitle "playchess.com"]
[Source "ChessBase"]
[SourceQuality "1"]
[TimeControl "1500+10"]

1. d4 {[%emt 0:00:00]} d5 {[%emt 0:00:05]} 2. c4 {[%emt 0:00:04]} e6 {[%emt 0:00:03]} 3. Nf3 {[%emt 0:00:05]} Nf6 {[%emt 0:00:07]} 4. Nc3 {[%emt 0:00:06]} c5 {[%emt 0:00:16]} 5. cxd5 {[%emt 0:00:43]} exd5 {[%emt 0:00:07]} 6. Bg5 {[%emt 0:00:48]} Be6 {[%emt 0:01:06]} 7. e4 {[%emt 0:01:55]} dxe4 {[%emt 0:02:09]} 8. Bxf6 {[%emt 0:03:00]} Qxf6 {[%emt 0:00:59]} 9. Nxe4 {[%emt 0:00:12]} Qd8 {[%emt 0:01:15]} 10. dxc5 {[%emt 0:01:30]} Qa5+ {[%emt 0:02:26]} 11. Qd2 {[%emt 0:00:42]} Qc7 {[%emt 0:00:33]} 12. Rd1 {[%emt 0:02:05]} Nc6 {[%emt 0:02:52]} 13. Bb5 {[%emt 0:00:49]} a6 {[%emt 0:00:53]} 14. Nd6+ {[%emt 0:02:52]} Bxd6 {[%emt 0:00:35]} 15. cxd6 {[%emt 0:00:04]} Qd7 {[%emt 0:00:11]} 16. Ne5 {[%emt 0:00:51]} Qd8 {[%emt 0:01:48]} 17. Bxc6+ {[%emt 0:00:32]} bxc6 {[%emt 0:00:10]} 18. d7+ {[%emt 0:00:25]} Kf8 {[%emt 0:00:34]} 19. Qd6+ {[%emt 0:00:39]} Kg8 {[%emt 0:00:09]} 20. Nxc6 {[%emt 0:00:30]} Qxd7 {[%emt 0:04:51]} 21. Qxd7 {[%emt 0:01:39]} Bxd7 {[%emt 0:00:17]} 22. Rxd7 {[%emt 0:00:07]} g6 {[%emt 0:00:13]} 23. O-O {[%emt 0:01:28]} Kg7 {[%emt 0:00:06]} 24. Ne5 {[%emt 0:00:20]} Rhf8 {[%emt 0:00:13]} 25. Rfd1 {[%emt 0:00:29]} Rae8 {[%emt 0:00:15]} 26. Nc4 {[%emt 0:00:18]} Re2 {[%emt 0:00:11]} 27. R7d2 {[%emt 0:01:27]} Rfe8 {[%emt 0:00:28]} 28. Kf1 {[%emt 0:00:16]} R2e4 {[%emt 0:00:14]} 29. Nd6 {[%emt 0:00:04]} R8e5 {[%emt 0:00:26]} 30. Nxe4 {[%emt 0:00:06]} Rxe4 {[%emt 0:00:01]} 31. f3 {[%emt 0:00:04]} Rb4 {[%emt 0:00:04]} 32. Rc1 {[%emt 0:00:10]} Rb6 {[%emt 0:00:07]} 33. Rc7 {[%emt 0:00:04]} h5 {[%emt 0:00:14]} 34. Rdd7 {[%emt 0:00:05]} Rf6 {[%emt 0:00:03]} 35. Kf2 {[%emt 0:00:07]} Kg8 {[%emt 0:00:08]} 36. Ra7 {[%emt 0:00:08]} h4 {[%emt 0:00:07]} 37. Rd8+ {[%emt 0:00:05]} Kg7 {[%emt 0:00:04]} 38. Rda8 {[%emt 0:00:05]} Rb6 {[%emt 0:00:06]} 39. b3 {[%emt 0:00:05]} Rc6 {[%emt 0:00:01]} 40. Ke3 {[%emt 0:00:42]} Re6+ {[%emt 0:00:06]} 41. Kf4 {[%emt 0:00:42]} Re2 {[%emt 0:00:09]} 42. g3 {[%emt 0:00:04]} h3 {[%emt 0:00:05]} 43. g4 {[%emt 0:00:15]} Rxh2 {[%emt 0:00:03]} 44. Kg3 {[%emt 0:00:08]} Rh1 {[%emt 0:00:04]} 45. Rxa6 {[%emt 0:00:08]} Kh6 {[%emt 0:00:05]} 46. Rh8+ {[%emt 0:00:04]} Kg7 {[%emt 0:00:08]} 47. Rxh3 {[%emt 0:00:02]} Rg1+ {[%emt 0:00:01]} 48. Kf2 {[%emt 0:00:02]} Rb1 {[%emt 0:00:03]} 49. f4 {[%emt 0:00:07]} Rb2+ {[%emt 0:00:05]} 50. Ke3 {[%emt 0:00:02]} Rc2 {[%emt 0:00:04]} 51. Kd4 {[%emt 0:00:02]} Rd2+ {[%emt 0:00:02]} 52. Rd3 {[%emt 0:00:02]} Rc2 {[%emt 0:00:04]} 53. b4 {[%emt 0:00:05]} Kf8 {[%emt 0:00:07]} 54. b5 {[%emt 0:00:06]} Ke8 {[%emt 0:00:02]} 55. b6 {[%emt 0:00:03]} Kd8 {[%emt 0:00:02]} 56. Ra8+ {[%emt 0:00:09]} Kd7 {[%emt 0:00:06]} 57. b7 {[%emt 0:00:01]} Rxa2 {[%emt 0:00:10]} 58. Rxa2 {[%emt 0:00:04]} Kc7 {[%emt 0:00:02]} 59. Rb2 {[%emt 0:00:04]} Kb8 {[%emt 0:00:02]} 60. Rc3 {[%emt 0:00:05]} f6 {[%emt 0:00:02]} 61. Rc8+ {[%emt 0:00:03]} Ka7 {[%emt 0:03:50]} 62. Ra8# {[%emt 0:00:03]} 1-0

[Event "African Online-ch U20-Open 2021"]
[Site "Online"]
[Date "2021.02.01"]
[Round "4.22"]
[White "Potgieter, Edward"]
[Black "Belattar, Mohamed Walid"]
[Result "1-0"]
[ECO "B78"]
[WhiteElo "1229"]
[BlackElo "1214"]
[Annotator "NA RC"]
[PlyCount "53"]
[EventDate "2021.02.01"]
[EventType "swiss"]
[EventCountry "NET"]
[SourceTitle "playchess.com"]
[Source "ChessBase"]
[SourceQuality "1"]
[TimeControl "1500+10"]

1. e4 {[%emt 0:00:00]} c5 {[%emt 0:00:03]} 2. Nf3 {[%emt 0:00:02]} g6 {[%emt 0:00:02]} 3. d4 {[%emt 0:00:02]} cxd4 {[%emt 0:00:02]} 4. Nxd4 {[%emt 0:00:02]} Bg7 {[%emt 0:00:02]} 5. Nc3 {[%emt 0:00:03]} Nc6 {[%emt 0:00:04]} 6. Be3 {[%emt 0:00:05]} d6 {[%emt 0:00:06]} 7. Bc4 {[%emt 0:00:19]} Nf6 {[%emt 0:00:13]} 8. f3 {[%emt 0:00:12]} O-O {[%emt 0:00:07]} 9. Qd2 {[%emt 0:00:15]} Bd7 {[%emt 0:00:19]} 10. O-O-O {[%emt 0:00:14]} Rc8 {[%emt 0:00:05]} 11. Bb3 {[%emt 0:00:35]} Nxd4 {[%emt 0:02:40]} 12. Bxd4 {[%emt 0:00:11]} a6 {[%emt 0:00:36]} 13. h4 {[%emt 0:00:36]} b5 {[%emt 0:01:45]} 14. h5 {[%emt 0:04:14]} e5 {[%emt 0:11:52]} 15. Be3 {[%emt 0:01:12]} Nxh5 {[%emt 0:01:54]} 16. Bh6 {[%emt 0:01:20]} Qf6 {[%emt 0:01:21]} 17. Bg5 {[%emt 0:00:20]} Bh6 {[%emt 0:02:20]} 18. Bxh6 {[%emt 0:00:07]} Rfe8 {[%emt 0:00:38]} 19. Bg5 {[%emt 0:00:37]} Qh8 {[%emt 0:00:09]} 20. Nd5 {[%emt 0:00:33]} Bc6 {[%emt 0:03:45]} 21. g4 {[%emt 0:00:26]} Ng3 {[%emt 0:00:10]} 22. Rh3 {[%emt 0:00:26]} Bxd5 {[%emt 0:00:10]} 23. Qxd5 {[%emt 0:00:10]} Ne2+ {[%emt 0:00:10]} 24. Kb1 {[%emt 0:00:06]} Rc7 {[%emt 0:00:05]} 25. Qxd6 {[%emt 0:00:26]} Rcc8 {[%emt 0:00:14]} 26. Qd7 {[%emt 0:00:30]} Rcd8 {[%emt 0:00:13]} 27. Qxf7# {[%emt 0:00:13]} 1-0

[Event "African Online-ch U20-Open 2021"]
[Site "Online"]
[Date "2021.02.01"]
[Round "5.9"]
[White "Machinya Desire"]
[Black "Sparg, Nathan"]
[Result "1-0"]
[ECO "C00"]
[WhiteElo "1638"]
[BlackElo "1413"]
[Annotator "NA RC"]
[PlyCount "67"]
[EventDate "2021.02.01"]
[EventType "swiss"]
[EventCountry "NET"]
[SourceTitle "playchess.com"]
[Source "ChessBase"]
[SourceQuality "1"]
[TimeControl "1500+10"]

1. e4 {[%emt 0:00:00]} e6 {[%emt 0:00:03]} 2. d3 {[%emt 0:00:21]} d5 {[%emt 0:00:10]} 3. Nd2 {[%emt 0:00:13]} Nf6 {[%emt 0:00:14]} 4. g3 {[%emt 0:00:16]} Nc6 {[%emt 0:00:58]} 5. Bg2 {[%emt 0:00:05]} dxe4 {[%emt 0:00:06]} 6. dxe4 {[%emt 0:00:08]} Bc5 {[%emt 0:00:15]} 7. Ngf3 {[%emt 0:00:03]} e5 {[%emt 0:00:22]} 8. c3 {[%emt 0:00:04]} O-O {[%emt 0:00:06]} 9. O-O {[%emt 0:00:06]} a5 {[%emt 0:00:26]} 10. h3 {[%emt 0:00:25]} Qe7 {[%emt 0:00:39]} 11. Re1 {[%emt 0:00:11]} Rd8 {[%emt 0:01:08]} 12. Qc2 {[%emt 0:00:17]} b6 {[%emt 0:01:48]} 13. Nb3 {[%emt 0:00:26]} Bd6 {[%emt 0:00:41]} 14. Nh4 {[%emt 0:00:51]} Ba6 {[%emt 0:02:18]} 15. Nf5 {[%emt 0:02:52]} Qf8 {[%emt 0:01:41]} 16. Bg5 {[%emt 0:02:33]} Be7 {[%emt 0:00:22]} 17. Nxe7+ {[%emt 0:02:02]} Qxe7 {[%emt 0:00:06]} 18. f4 {[%emt 0:00:13]} h6 {[%emt 0:02:58]} 19. Bh4 {[%emt 0:00:36]} a4 {[%emt 0:02:41]} 20. Nc1 {[%emt 0:00:10]} Qd6 {[%emt 0:00:45]} 21. fxe5 {[%emt 0:06:00]} Nxe5 {[%emt 0:01:21]} 22. g4 {[%emt 0:01:18]} g5 {[%emt 0:04:33]} 23. Bf2 {[%emt 0:00:09]} Nexg4 {[%emt 0:00:11]} 24. hxg4 {[%emt 0:00:37]} Nxg4 {[%emt 0:00:04]} 25. e5 {[%emt 0:00:35]} Nxe5 {[%emt 0:01:00]} 26. Qf5 {[%emt 0:06:48]} Nd3 {[%emt 0:02:21]} 27. Nxd3 {[%emt 0:00:51]} Bxd3 {[%emt 0:00:04]} 28. Qh3 {[%emt 0:00:24]} Ra5 {[%emt 0:00:34]} 29. Rad1 {[%emt 0:00:44]} Rf5 {[%emt 0:01:24]} 30. Be4 {[%emt 0:00:17]} Rxf2 {[%emt 0:00:23]} 31. Rxd3 {[%emt 0:00:15]} Qc5 {[%emt 0:00:13]} 32. Rxd8+ {[%emt 0:00:03]} Kg7 {[%emt 0:00:02]} 33. Qe3 {[%emt 0:00:14]} Re2 {[%emt 0:00:22]} 34. Rxe2 {[%emt 0:00:09]} 1-0

[Event "African Online-ch U20-Open 2021"]
[Site "Online"]
[Date "2021.02.01"]
[Round "5.10"]
[White "van der Merwe, Alexander"]
[Black "Soojay, Jorah"]
[Result "1-0"]
[ECO "B01"]
[WhiteElo "1655"]
[BlackElo "1478"]
[Annotator "NA RC"]
[PlyCount "55"]
[EventDate "2021.02.01"]
[EventType "swiss"]
[EventCountry "NET"]
[SourceTitle "playchess.com"]
[Source "ChessBase"]
[SourceQuality "1"]
[TimeControl "1500+10"]

1. e4 {[%emt 0:00:00]} d5 {[%emt 0:00:03]} 2. exd5 {[%emt 0:00:02]} Nf6 {[%emt 0:00:04]} 3. d4 {[%emt 0:00:03]} Nxd5 {[%emt 0:00:03]} 4. Nf3 {[%emt 0:00:02]} Bg4 {[%emt 0:00:03]} 5. Be2 {[%emt 0:00:01]} e6 {[%emt 0:00:03]} 6. O-O {[%emt 0:00:07]} Nc6 {[%emt 0:00:02]} 7. c4 {[%emt 0:00:22]} Nf6 {[%emt 0:00:07]} 8. Be3 {[%emt 0:00:41]} Be7 {[%emt 0:00:30]} 9. Nc3 {[%emt 0:01:01]} Bd6 {[%emt 0:01:38]} 10. d5 {[%emt 0:03:27]} exd5 {[%emt 0:00:06]} 11. cxd5 {[%emt 0:00:25]} Ne7 {[%emt 0:00:26]} 12. Bg5 {[%emt 0:01:20]} h6 {[%emt 0:02:10]} 13. Bxf6 {[%emt 0:02:11]} gxf6 {[%emt 0:00:04]} 14. Qd4 {[%emt 0:01:01]} Rg8 {[%emt 0:00:15]} 15. Ne4 {[%emt 0:03:11]} Nf5 {[%emt 0:01:31]} 16. Nxf6+ {[%emt 0:02:25]} Kf8 {[%emt 0:00:05]} 17. Nh7+ {[%emt 0:01:15]} Ke8 {[%emt 0:00:39]} 18. Qe4+ {[%emt 0:00:36]} Kd7 {[%emt 0:00:05]} 19. Ne5+ {[%emt 0:01:05]} Bxe5 {[%emt 0:00:07]} 20. Bxg4 {[%emt 0:00:28]} Bxh2+ {[%emt 0:00:21]} 21. Kh1 {[%emt 0:00:34]} Rxg4 {[%emt 0:01:21]} 22. Qxf5+ {[%emt 0:00:29]} Kd6 {[%emt 0:00:15]} 23. Qxg4 {[%emt 0:00:19]} Qh8 {[%emt 0:00:05]} 24. Kxh2 {[%emt 0:00:18]} Qxh7 {[%emt 0:00:09]} 25. Qf4+ {[%emt 0:00:03]} Kd7 {[%emt 0:00:04]} 26. Rac1 {[%emt 0:00:07]} Rc8 {[%emt 0:00:17]} 27. Rfe1 {[%emt 0:00:05]} Qg6 {[%emt 0:00:07]} 28. Qe5 {[%emt 0:00:08]} 1-0

[Event "African Online-ch U20-Open 2021"]
[Site "Online"]
[Date "2021.02.01"]
[Round "5.11"]
[White "Elayeb, Med Yessine"]
[Black "Mena, Martin"]
[Result "1-0"]
[ECO "A14"]
[WhiteElo "1666"]
[BlackElo "1776"]
[Annotator "NA RC"]
[PlyCount "75"]
[EventDate "2021.02.01"]
[EventType "swiss"]
[EventCountry "NET"]
[SourceTitle "playchess.com"]
[Source "ChessBase"]
[SourceQuality "1"]
[TimeControl "1500+10"]

1. Nf3 {[%emt 0:00:04]} d5 {[%emt 0:06:57]} 2. g3 {[%emt 0:00:05]} Nf6 {[%emt 0:00:07]} 3. Bg2 {[%emt 0:00:02]} e6 {[%emt 0:00:02]} 4. c4 {[%emt 0:00:22]} Be7 {[%emt 0:00:07]} 5. O-O {[%emt 0:00:06]} O-O {[%emt 0:00:03]} 6. b3 {[%emt 0:00:02]} c5 {[%emt 0:00:36]} 7. Bb2 {[%emt 0:00:23]} Nc6 {[%emt 0:00:46]} 8. e3 {[%emt 0:00:02]} Qc7 {[%emt 0:01:35]} 9. Nc3 {[%emt 0:00:18]} Rd8 {[%emt 0:01:28]} 10. Rc1 {[%emt 0:04:25]} dxc4 {[%emt 0:03:10]} 11. bxc4 {[%emt 0:00:10]} Nb4 {[%emt 0:01:45]} 12. Ne1 {[%emt 0:00:35]} Qd6 {[%emt 0:01:32]} 13. a3 {[%emt 0:06:29]} Qxd2 {[%emt 0:04:17]} 14. Qb3 {[%emt 0:00:19]} Nd3 {[%emt 0:04:39]} 15. Rc2 {[%emt 0:01:12]} Nc1 {[%emt 0:00:07]} 16. Bxc1 {[%emt 0:00:26]} Qd6 {[%emt 0:00:03]} 17. Rd2 {[%emt 0:00:16]} Qc7 {[%emt 0:00:09]} 18. Rxd8+ {[%emt 0:00:38]} Qxd8 {[%emt 0:00:11]} 19. Nf3 {[%emt 0:00:24]} a6 {[%emt 0:00:19]} 20. Rd1 {[%emt 0:00:44]} Qe8 {[%emt 0:00:08]} 21. Ne5 {[%emt 0:00:17]} Rb8 {[%emt 0:00:05]} 22. Qb6 {[%emt 0:00:26]} Nd7 {[%emt 0:00:20]} 23. Nxd7 {[%emt 0:00:25]} Bxd7 {[%emt 0:00:04]} 24. Qc7 {[%emt 0:00:44]} Bc6 {[%emt 0:00:13]} 25. Bxc6 {[%emt 0:00:51]} bxc6 {[%emt 0:00:08]} 26. Rd7 {[%emt 0:00:49]} Bf8 {[%emt 0:00:12]} 27. Rd3 {[%emt 0:02:33]} e5 {[%emt 0:00:12]} 28. e4 {[%emt 0:00:41]} f6 {[%emt 0:00:10]} 29. Be3 {[%emt 0:00:26]} Rc8 {[%emt 0:00:12]} 30. Qd7 {[%emt 0:00:18]} Rb8 {[%emt 0:00:12]} 31. Qxe8 {[%emt 0:00:03]} Rxe8 {[%emt 0:00:02]} 32. Na4 {[%emt 0:00:09]} Rb8 {[%emt 0:00:09]} 33. Nxc5 {[%emt 0:00:07]} Rb1+ {[%emt 0:00:06]} 34. Kg2 {[%emt 0:00:03]} Ra1 {[%emt 0:00:15]} 35. Rd8 {[%emt 0:00:40]} Kf7 {[%emt 0:00:09]} 36. Nb3 {[%emt 0:00:12]} Rxa3 {[%emt 0:00:14]} 37. Rxf8+ {[%emt 0:00:07]} Kxf8 {[%emt 0:00:06]} 38. Bc5+ {[%emt 0:00:01]} 1-0

[Event "African Online-ch U20-Open 2021"]
[Site "Online"]
[Date "2021.02.01"]
[Round "5.12"]
[White "Fourie, Brandon"]
[Black "Mcligeyo, Robert"]
[Result "1-0"]
[ECO "B01"]
[WhiteElo "1583"]
[BlackElo "1688"]
[Annotator "NA RC"]
[PlyCount "83"]
[EventDate "2021.02.01"]
[EventType "swiss"]
[EventCountry "NET"]
[SourceTitle "playchess.com"]
[Source "ChessBase"]
[SourceQuality "1"]
[TimeControl "1500+10"]

1. e4 {[%emt 0:00:00]} d5 {[%emt 0:00:14]} 2. exd5 {[%emt 0:00:04]} Nf6 {[%emt 0:00:09]} 3. d4 {[%emt 0:00:08]} Nxd5 {[%emt 0:00:15]} 4. Nf3 {[%emt 0:00:06]} Bg4 {[%emt 0:00:05]} 5. Bc4 {[%emt 0:00:26]} e6 {[%emt 0:00:04]} 6. O-O {[%emt 0:00:13]} Be7 {[%emt 0:00:03]} 7. h3 {[%emt 0:00:04]} Bh5 {[%emt 0:00:03]} 8. Re1 {[%emt 0:01:08]} O-O {[%emt 0:00:05]} 9. Nbd2 {[%emt 0:01:03]} Nc6 {[%emt 0:00:08]} 10. c3 {[%emt 0:00:25]} a6 {[%emt 0:02:18]} 11. Ne4 {[%emt 0:00:20]} h6 {[%emt 0:01:49]} 12. Ng3 {[%emt 0:00:19]} Bg6 {[%emt 0:00:27]} 13. Bd3 {[%emt 0:00:07]} Bxd3 {[%emt 0:00:15]} 14. Qxd3 {[%emt 0:00:02]} Bd6 {[%emt 0:00:17]} 15. Ne5 {[%emt 0:01:06]} Nxe5 {[%emt 0:03:11]} 16. dxe5 {[%emt 0:00:05]} Bc5 {[%emt 0:00:04]} 17. Qe4 {[%emt 0:00:52]} f5 {[%emt 0:06:04]} 18. Qc4 {[%emt 0:04:47]} Bb6 {[%emt 0:01:22]} 19. Bd2 {[%emt 0:00:26]} f4 {[%emt 0:00:16]} 20. Ne4 {[%emt 0:02:00]} Qh4 {[%emt 0:00:26]} 21. Rad1 {[%emt 0:02:02]} Kh8 {[%emt 0:00:13]} 22. Nc5 {[%emt 0:00:33]} Bxc5 {[%emt 0:00:05]} 23. Qxc5 {[%emt 0:00:28]} f3 {[%emt 0:00:03]} 24. Qd4 {[%emt 0:01:25]} Nf4 {[%emt 0:03:56]} 25. Bxf4 {[%emt 0:02:46]} Rxf4 {[%emt 0:00:03]} 26. Qe3 {[%emt 0:00:42]} fxg2 {[%emt 0:00:26]} 27. Qg3 {[%emt 0:01:17]} Raf8 {[%emt 0:03:07]} 28. Qxh4 {[%emt 0:00:19]} Rxh4 {[%emt 0:00:02]} 29. Kxg2 {[%emt 0:00:02]} Rhf4 {[%emt 0:00:03]} 30. Re2 {[%emt 0:00:17]} Rc4 {[%emt 0:00:17]} 31. Rd7 {[%emt 0:00:33]} Kh7 {[%emt 0:00:08]} 32. Re7 {[%emt 0:00:16]} Rc6 {[%emt 0:00:05]} 33. Rd2 {[%emt 0:00:16]} Rf5 {[%emt 0:01:53]} 34. Rdd7 {[%emt 0:00:34]} Rxe5 {[%emt 0:00:14]} 35. Rxg7+ {[%emt 0:00:03]} Kh8 {[%emt 0:00:04]} 36. h4 {[%emt 0:00:48]} Re4 {[%emt 0:01:25]} 37. f3 {[%emt 0:01:00]} Re2+ {[%emt 0:00:27]} 38. Kg3 {[%emt 0:00:17]} e5 {[%emt 0:00:29]} 39. h5 {[%emt 0:00:42]} Re1 {[%emt 0:00:17]} 40. Kf2 {[%emt 0:00:19]} Rb1 {[%emt 0:00:18]} 41. Rge7 {[%emt 0:00:17]} Rxb2+ {[%emt 0:00:09]} 42. Kg3 {[%emt 0:00:05]} 1-0

[Event "African Online-ch U20-Open 2021"]
[Site "Online"]
[Date "2021.02.01"]
[Round "5.13"]
[White "Joao Farisse"]
[Black "Ofile Masilo"]
[Result "1-0"]
[ECO "D35"]
[WhiteElo "1574"]
[BlackElo "1457"]
[Annotator "NA RC"]
[PlyCount "81"]
[EventDate "2021.02.01"]
[EventType "swiss"]
[EventCountry "NET"]
[SourceTitle "playchess.com"]
[Source "ChessBase"]
[SourceQuality "1"]
[TimeControl "1500+10"]

1. c4 {[%emt 0:00:00]} e6 {[%emt 0:00:05]} 2. Nc3 {[%emt 0:00:08]} d5 {[%emt 0:00:09]} 3. cxd5 {[%emt 0:00:02]} exd5 {[%emt 0:00:05]} 4. d4 {[%emt 0:00:02]} Nf6 {[%emt 0:00:22]} 5. Bf4 {[%emt 0:00:12]} c6 {[%emt 0:00:16]} 6. Nf3 {[%emt 0:00:54]} Bd6 {[%emt 0:00:06]} 7. Bg5 {[%emt 0:00:10]} h6 {[%emt 0:00:05]} 8. Bh4 {[%emt 0:00:04]} O-O {[%emt 0:00:04]} 9. e3 {[%emt 0:00:11]} Re8 {[%emt 0:00:05]} 10. Bd3 {[%emt 0:00:25]} Be7 {[%emt 0:01:27]} 11. Ne5 {[%emt 0:00:21]} Qb6 {[%emt 0:00:20]} 12. Qc2 {[%emt 0:00:27]} Be6 {[%emt 0:00:48]} 13. O-O {[%emt 0:00:32]} Nbd7 {[%emt 0:00:09]} 14. f4 {[%emt 0:00:05]} Nf8 {[%emt 0:01:28]} 15. Kh1 {[%emt 0:00:36]} Red8 {[%emt 0:05:27]} 16. g4 {[%emt 0:01:05]} Qc7 {[%emt 0:01:22]} 17. g5 {[%emt 0:01:02]} hxg5 {[%emt 0:01:15]} 18. fxg5 {[%emt 0:01:29]} Ng4 {[%emt 0:01:44]} 19. Nxg4 {[%emt 0:01:18]} Bxg4 {[%emt 0:00:08]} 20. Qf2 {[%emt 0:00:19]} Be6 {[%emt 0:03:56]} 21. Rac1 {[%emt 0:00:35]} Qd7 {[%emt 0:00:41]} 22. Ne2 {[%emt 0:00:44]} Ng6 {[%emt 0:00:39]} 23. Nf4 {[%emt 0:00:24]} Nxf4 {[%emt 0:00:33]} 24. Qxf4 {[%emt 0:00:15]} Bd6 {[%emt 0:00:10]} 25. Qf2 {[%emt 0:00:36]} g6 {[%emt 0:00:20]} 26. Bg3 {[%emt 0:00:34]} Bxg3 {[%emt 0:00:08]} 27. Qxg3 {[%emt 0:00:11]} Kg7 {[%emt 0:00:28]} 28. Qe5+ {[%emt 0:00:13]} Kg8 {[%emt 0:01:10]} 29. Rf4 {[%emt 0:00:18]} Bg4 {[%emt 0:00:12]} 30. Rg1 {[%emt 0:00:51]} Bh5 {[%emt 0:00:13]} 31. Rf6 {[%emt 0:01:37]} Re8 {[%emt 0:00:42]} 32. Qf4 {[%emt 0:00:19]} Re6 {[%emt 0:00:49]} 33. Rf1 {[%emt 0:00:53]} Rxf6 {[%emt 0:01:07]} 34. gxf6 {[%emt 0:00:10]} Qe8 {[%emt 0:01:08]} 35. Qh6 {[%emt 0:02:13]} Qf8 {[%emt 0:00:08]} 36. Qg5 {[%emt 0:00:03]} a5 {[%emt 0:01:58]} 37. Rf4 {[%emt 0:01:04]} Re8 {[%emt 0:00:16]} 38. Rh4 {[%emt 0:00:10]} Kh8 {[%emt 0:00:26]} 39. Rxh5+ {[%emt 0:00:43]} gxh5 {[%emt 0:00:31]} 40. Qxh5+ {[%emt 0:00:06]} Kg8 {[%emt 0:00:18]} 41. Qh7# {[%emt 0:00:04]} 1-0